fUST/lending_fUST_20240515
["ID","MTS","AMOUNT","RATE_DAILY","PERIOD"]
[327003507,1715702566326,154.9063322,0.000165,2]
[327003510,1715702663233,154.99434947,0.000165,2]
[327003511,1715702667640,309.47389438,0.000165,2]
[327003512,1715702668871,154.81422293,0.000165,2]
[327003513,1715702679259,156.07783812,0.000165,2]
[327003514,1715702686810,154.81422293,0.000165,2]
[327003515,1715702703070,273.85089148,0.000165,2]
[327003516,1715702704822,301.4384415,0.000165,2]
[327003517,1715702707566,222.38123937,0.000165,2]
[327003519,1715702804563,364.39759139,0.000165,2]
[327003520,1715702821485,281.09538641,0.000165,2]
[327003521,1715702828787,363.54386345,0.000165,2]
[327003522,1715702832577,2088.41282638,0.000165,2]
[327003523,1715702842194,522.76857671,9.999e-05,2]
[327003524,1715702846505,1602.55217826,0.000165,2]
[327003572,1715703032736,-2726.02544273,0.00018213,2]
[327003573,1715703032745,-150.0,0.000189,2]
[327003575,1715703032754,-125.15150543,0.00019296,2]
[327003577,1715703032766,-1561.08695129,0.00019296,2]
[327004171,1715703043807,-23213.76154328,0.00019296,2]
[327004173,1715703043816,-1647.01590178,0.00019941,2]
[327004175,1715703043826,-1846.01676234,0.0002,2]
[327004181,1715703043868,-9443.38545744,0.0002,2]
[327004183,1715703043880,-3013.83388341,0.0002,2]
[327004185,1715703043890,-499.86264339,0.0002,2]
[327004187,1715703043902,-792.5,0.00020903,3]
[327004189,1715703043911,-413.03882179,0.00020911,2]
[327004191,1715703043920,-280.92918891,0.00020911,2]
[327004398,1715703046716,-1612.70307049,0.00019753,2]
[327004400,1715703046726,-260.4581665,0.00020911,2]
[327004402,1715703046735,-745.18901351,0.00020911,2]
[327004404,1715703046744,-156.04883982,0.00020911,2]
[327004405,1715703046756,-2070.62840838,0.00020911,2]
[327004673,1715703053679,10100.78741447,0.000165,2]
[327004674,1715703053705,112532.0922238,0.000165,2]
[327004675,1715703137646,834.89269963,9.999e-05,2]
[327004677,1715703242190,1042.60704695,9.999e-05,2]
[327004687,1715703656761,1625.61928352,9.999e-05,2]
[327004688,1715703711947,284.82796556,9.999e-05,2]
[327004689,1715703772334,194.31391805,9.999e-05,2]
[327004690,1715703782073,2636.86271003,9.999e-05,2]
[327004691,1715703791362,834.89269963,9.999e-05,2]
[327004692,1715703843191,236.36877291,9.999e-05,2]
[327004693,1715703845594,315.84581765,9.999e-05,2]
[327004696,1715703947995,521.0,9.999e-05,2]
[327004697,1715704047078,15440.31376339,9.999e-05,2]
[327004699,1715704094702,223.97913793,0.00015,2]
[327004700,1715704109241,3060.26446828,9.999e-05,2]
[327004759,1715704231853,-569.0,0.00019746,2]
[327004761,1715704231864,-265.89269963,0.00019746,2]
[327004763,1715704231874,-251.4681512,0.00019747,2]
[327004765,1715704231884,-387.9638819,0.0002,2]
[327004767,1715704231895,-111.89876149,0.0002,2]
[327004770,1715704231904,-154.81422293,0.0002,2]
[327004773,1715704231914,-320.10569332,0.00020701,2]
[327004776,1715704231923,-1647.01590178,0.00020758,2]
[327004779,1715704231932,-152.04829865,0.00020812,2]
[327004782,1715704231941,-61309.93383024,0.0002091,2]
[327004785,1715704231953,-269.24912565,0.0002091,2]
[327004789,1715704231964,-6403.09958221,0.0002091,2]
[327004791,1715704231973,-500.0,0.0002091,2]
[327004793,1715704231982,-500.0,0.0002091,2]
[327004795,1715704231992,-500.0,0.0002091,2]
[327004797,1715704232002,-562.51167578,0.0002091,2]
[327004799,1715704232012,-80.22951742,0.00020911,2]
[327004800,1715704232023,-584.66678309,0.00020911,2]
[327004802,1715704232034,-189.11599675,0.00020911,2]
[327004804,1715704232044,-998.76855331,0.00020911,2]
[327004806,1715704232053,-1624.29060212,0.00020911,2]
[327004808,1715704232062,-1579.70306251,0.00020911,2]
[327004810,1715704232071,-284.39174156,0.00020911,2]
[327004812,1715704232081,-904.83466521,0.00020911,2]
[327004814,1715704232090,-410.02105366,0.00020911,2]
[327004816,1715704232099,-484.2157883,0.00020911,2]
[327004818,1715704232109,-1093.74406473,0.00020911,2]
[327004820,1715704232118,-194.06979746,0.00020911,2]
[327004822,1715704232127,-708.68781589,0.00020911,2]
[327004824,1715704232137,-527.88053844,0.00020911,2]
[327004825,1715704232147,-236.19809017,0.00020911,2]
[327004827,1715704232156,-315.49094957,0.00020911,2]
[327004829,1715704232165,-292.37560477,0.00020911,2]
[327004831,1715704232174,-1091.34372914,0.00020911,2]
[327004833,1715704232184,-2595.37774588,0.00020912,2]
[327004835,1715704232193,-500.0,0.00020912,2]
[327004837,1715704232202,-233.16294446,0.00020912,2]
[327004839,1715704232211,-500.0,0.00020912,2]
[327004841,1715704232222,-500.0,0.00020912,2]
[327004843,1715704232236,-500.0,0.00020912,2]
[327004846,1715704232256,-500.0,0.00020912,2]
[327004849,1715704232269,-500.0,0.00020912,2]
[327004852,1715704232286,-500.0,0.00020912,2]
[327004854,1715704232303,-27193.03606163,0.00020913,2]
[327004907,1715704238203,-7705.54768496,0.00020913,2]
[327005091,1715704240418,-4762.27480591,0.00020913,2]
[327005092,1715704240429,-9070.40315154,0.00020913,2]
[327005358,1715704243068,-8141.37880563,0.00020913,2]
[327005532,1715704272767,364.69742493,9.999e-05,2]
[327005533,1715704294725,364.09775785,9.999e-05,2]
[327005534,1715704410753,364.39759139,9.999e-05,2]
[327005554,1715705019356,500.0,9.999e-05,2]
[327005556,1715705230615,238.60242952,9.999e-05,2]
[327005558,1715705373087,100000.0,0.000225,30]
[327005832,1715705440907,-834.89269963,0.00018887,2]
[327005833,1715705440918,-20232.47978653,0.00018894,2]
[327005834,1715705440929,-385.53012546,0.000189,2]
[327005835,1715705440940,-499.86264339,0.0002,2]
[327005836,1715705440952,-256.08455466,0.00020703,2]
[327005837,1715705440961,-229.16796398,0.00020912,2]
[327005838,1715705440972,-31698.24174447,0.00020913,2]
[327006198,1715705558678,410.1822052,9.999e-05,2]
[327006219,1715705881853,159.9879374,9.999e-05,2]
[327006220,1715705891141,522.76857671,9.999e-05,2]
[327006221,1715705895943,191.31205007,9.999e-05,2]
[327006222,1715705929199,219.31867063,9.999e-05,2]
[327006223,1715705943107,5300.36224376,9.999e-05,2]
[327006235,1715706162602,395.03673245,9.999e-05,2]
[327006240,1715706185793,330.73596989,9.999e-05,2]
[327006252,1715706239629,465.74917975,9.999e-05,2]
[327006258,1715706556246,238.60242952,9.999e-05,2]
[327006296,1715706632492,-834.89269963,0.00018898,2]
[327006298,1715706632502,-567.3948342,0.000189,2]
[327006300,1715706632511,-499.86264339,0.0002,2]
[327006302,1715706632520,-1647.01590178,0.00020727,2]
[327006304,1715706632530,-281.0,0.000209,2]
[327006306,1715706632539,-11221.04024178,0.00020912,2]
[327006308,1715706632549,-42976.31475012,0.00020912,2]
[327006364,1715706642826,-189.77637659,0.00018,2]
[327006365,1715706642836,-1497.88361383,0.00019804,2]
[327006366,1715706642847,-1497.88361383,0.00020158,2]
[327006367,1715706642857,-25005.96778798,0.00020912,2]
[327006368,1715706642867,-254.63107108,0.00020912,2]
[327006369,1715706642877,-500.0,0.00020913,2]
[327006370,1715706642886,-490.1382102,0.00020913,2]
[327006371,1715706642896,-500.0,0.00020913,2]
[327006372,1715706642905,-500.0,0.00020913,2]
[327006373,1715706642914,-500.0,0.00020913,2]
[327006374,1715706642924,-500.0,0.00020913,2]
[327006376,1715706642934,-500.0,0.00020913,2]
[327006378,1715706642943,-500.0,0.00020913,2]
[327006380,1715706642953,-627.68992269,0.00020913,2]
[327006383,1715706642962,-500.0,0.00020913,2]
[327006385,1715706642971,-650.7193263,0.00020913,2]
[327006387,1715706642981,-500.0,0.00020913,2]
[327006390,1715706642991,-500.0,0.00020913,2]
[327006391,1715706643000,-409.88388351,0.00020913,2]
[327006393,1715706643010,-20887.67431001,0.00020913,2]
[327006427,1715706646399,-719.79,0.00020405,2]
[327006428,1715707208905,522.76857671,9.999e-05,2]
[327006431,1715707565300,465.74917975,9.999e-05,2]
[327006542,1715707846862,-378.2632228,0.000189,2]
[327006543,1715707846872,-499.86264339,0.0002,2]
[327006544,1715707846881,-442.86248838,0.00020405,2]
[327006545,1715707846891,-1647.01590178,0.0002078,2]
[327006546,1715707846900,-281.0,0.000209,2]
[327006547,1715707846910,-8627.74923804,0.00020913,2]
[327006548,1715707846919,-731.4,0.00021461,2]
[327006549,1715707846928,-815.3,0.00021469,2]
[327006550,1715707846938,-495.0,0.00021543,2]
[327006551,1715707846947,-495.0,0.00021543,2]
[327006552,1715707846958,-150.0,0.00021543,2]
[327006553,1715707846967,-166.666666,0.00021918,2]
[327006554,1715707846977,-1669.7215821,0.00021918,2]
[327006555,1715707846986,-159.57946618,0.00022,2]
[327006556,1715707846996,-5233.72362095,0.00022,4]
[327006557,1715707847006,-166.666666,0.00022431,2]
[327006558,1715707847016,-3973.46857554,0.000225,2]
[327006559,1715707847026,-1000.0,0.000225,2]
[327006560,1715707847037,-166.666666,0.00022944,2]
[327006561,1715707847046,-325.32,0.0002299,3]
[327006562,1715707847057,-500.0,0.00022999,2]
[327006563,1715707847068,-500.0,0.00022999,2]
[327006564,1715707847077,-500.0,0.00022999,2]
[327006565,1715707847087,-500.0,0.00022999,2]
[327006566,1715707847096,-500.0,0.00022999,2]
[327006567,1715707847105,-500.0,0.00022999,2]
[327006568,1715707847114,-500.0,0.00022999,2]
[327006569,1715707847123,-500.0,0.00022999,2]
[327006570,1715707847133,-500.0,0.00022999,2]
[327006571,1715707847144,-500.0,0.00022999,2]
[327006572,1715707847153,-500.0,0.00022999,2]
[327006573,1715707847162,-500.0,0.00022999,2]
[327006574,1715707847172,-500.0,0.00022999,2]
[327006575,1715707847182,-500.0,0.00022999,2]
[327006576,1715707847192,-500.0,0.00022999,2]
[327006577,1715707847204,-500.0,0.00022999,2]
[327006578,1715707847213,-500.0,0.00022999,2]
[327006579,1715707847222,-500.0,0.00022999,2]
[327006580,1715707847232,-500.0,0.00022999,2]
[327006581,1715707847241,-500.0,0.00022999,2]
[327006582,1715707847250,-500.0,0.00022999,2]
[327006583,1715707847260,-500.0,0.00022999,2]
[327006584,1715707847269,-500.0,0.00022999,2]
[327006585,1715707847278,-500.0,0.00022999,2]
[327006586,1715707847288,-500.0,0.00022999,2]
[327006587,1715707847301,-500.0,0.00022999,2]
[327006588,1715707847321,-500.0,0.00022999,2]
[327006589,1715707847336,-500.0,0.00022999,2]
[327006590,1715707847351,-500.0,0.00022999,2]
[327006591,1715707847368,-500.0,0.00022999,2]
[327006592,1715707847384,-480.5662396,0.00022999,2]
[327006593,1715707847405,-500.0,0.00022999,2]
[327006594,1715707847421,-500.0,0.00022999,2]
[327006595,1715707847437,-500.0,0.00022999,2]
[327006596,1715707847456,-161.37202121,0.00022999,2]
[327006597,1715707847468,-50309.0,0.00023,2]
[327006598,1715707847484,-339.59880619,0.00023356,2]
[327006599,1715707847500,-166.666666,0.00023456,2]
[327006600,1715707847516,-1690.16081839,0.000235,2]
[327006601,1715707847535,-378.2632228,0.000239,2]
[327006602,1715707847548,-166.666666,0.00023969,2]
[327006603,1715707847560,-650.64,0.0002436,3]
[327006604,1715707847577,-166.666666,0.00024482,2]
[327006605,1715707847591,-154.79876161,0.000245,2]
[327006606,1715707847605,-495.0,0.00024543,2]
[327006607,1715707847620,-1000.0,0.000248,2]
[327006608,1715707847632,-151.0,0.0002492,2]
[327006609,1715707847644,-212.042545,0.0002492,2]
[327006610,1715707847659,-212.042545,0.0002492,2]
[327006611,1715707847672,-504.058347,0.0002492,2]
[327006612,1715707847685,-504.058347,0.0002492,2]
[327006613,1715707847697,-151.0,0.00024924,2]
[327006614,1715707847709,-151.0,0.00024924,2]
[327006615,1715707847723,-422.96516506,0.00024939,2]
[327006616,1715707847736,-500.0,0.00024939,2]
[327006617,1715707847748,-397.04146306,0.00024939,2]
[327006618,1715707847762,-638.30697681,0.00024939,2]
[327006619,1715707847775,-278.87971127,0.00024939,2]
[327006620,1715707847788,-10098.9362176,0.0002495,2]
[327006621,1715707847801,-151.0,0.00024953,2]
[327006622,1715707847814,-151.0,0.00024953,2]
[327006623,1715707847827,-151.0,0.00024953,2]
[327006624,1715707847840,-151.0,0.0002496,2]
[327006625,1715707847855,-151.0,0.0002496,2]
[327006626,1715707847869,-151.0,0.0002496,2]
[327006627,1715707847882,-151.0,0.0002496,2]
[327006628,1715707847895,-151.0,0.0002496,2]
[327006629,1715707847908,-251.537377,0.0002496,2]
[327006630,1715707847921,-251.537377,0.0002496,2]
[327006631,1715707847934,-151.0,0.0002497,2]
[327006632,1715707847948,-551.178273,0.0002497,2]
[327006633,1715707847961,-551.178273,0.0002497,2]
[327006634,1715707847975,-151.0,0.0002497,2]
[327006635,1715707847988,-151.0,0.0002498,2]
[327006636,1715707848001,-151.0,0.0002498,2]
[327006637,1715707848015,-1509.320456,0.0002498,2]
[327006638,1715707848029,-1509.320456,0.0002498,2]
[327006639,1715707848043,-551.178273,0.0002498,2]
[327006640,1715707848056,-551.178273,0.0002498,2]
[327006641,1715707848068,-151.0,0.0002498,2]
[327006642,1715707848081,-151.0,0.0002499,2]
[327006643,1715707848094,-151.0,0.0002499,2]
[327006644,1715707848108,-1509.320456,0.0002499,2]
[327006645,1715707848121,-1509.320456,0.0002499,2]
[327006646,1715707848134,-160.0,0.00025,2]
[327006647,1715707848148,-209.99501132,0.00025,2]
[327006648,1715707848162,-3000.0,0.00025,2]
[327006649,1715707848174,-151.0,0.00025,2]
[327006650,1715707848187,-1154.0,0.00025,2]
[327006651,1715707848199,-151.0,0.00025,2]
[327006652,1715707848212,-151.0,0.00025,2]
[327006653,1715707848225,-178.0,0.00025,2]
[327006654,1715707848238,-151.0,0.00025,2]
[327006655,1715707848251,-151.0,0.00025,2]
[327006656,1715707848266,-151.0,0.00025,2]
[327006657,1715707848279,-151.0,0.00025,2]
[327006658,1715707848292,-151.0,0.00025,2]
[327006659,1715707848304,-251.537377,0.00025,2]
[327006660,1715707848318,-251.537377,0.00025,2]
[327006661,1715707848332,-151.0,0.00025,2]
[327006662,1715707848345,-151.0,0.00025,2]
[327006663,1715707848358,-151.0,0.00025,2]
[327006664,1715707848371,-151.0,0.00025,2]
[327006665,1715707848385,-151.0,0.00025,2]
[327006666,1715707848398,-212.042545,0.00025,2]
[327006667,1715707848412,-212.042545,0.00025,2]
[327006668,1715707848425,-151.0,0.00025,2]
[327006669,1715707848436,-151.0,0.00025,2]
[327006670,1715707848450,-504.058347,0.00025,2]
[327006671,1715707848459,-504.058347,0.00025,2]
[327006672,1715707848469,-551.178273,0.00025,2]
[327006673,1715707848478,-551.178273,0.00025,2]
[327006674,1715707848488,-400.46869514,0.00025004,2]
[327006675,1715707848498,-261.896948,0.00025005,2]
[327006676,1715707848717,-496.909748,0.00025005,2]
[327006677,1715707848745,-261.896948,0.00025005,2]
[327006678,1715707848755,-496.909748,0.00025005,2]
[327006679,1715707848764,-251.520683,0.00025005,2]
[327006680,1715707848773,-251.520683,0.00025005,2]
[327006681,1715707848782,-339.59880615,0.00025005,2]
[327006682,1715707848791,-353.65707405,0.00025014,2]
[327006683,1715707848800,-204.62559771,0.00025014,2]
[327006684,1715707848809,-151.0,0.00025014,2]
[327006685,1715707848819,-151.0,0.00025014,2]
[327006686,1715707848828,-1509.320456,0.00025014,2]
[327006687,1715707848837,-1509.320456,0.00025014,2]
[327006688,1715707848847,-500.0,0.00025014,2]
[327006689,1715707848856,-8559.8288628,0.00026,2]
[327006690,1715707848866,-151.0,0.00026,2]
[327006691,1715707848876,-151.0,0.00026,2]
[327006692,1715707848885,-151.0,0.00026,2]
[327006693,1715707848894,-151.0,0.00026,2]
[327006694,1715707848904,-151.0,0.00026,2]
[327006695,1715707848913,-151.0,0.00026,2]
[327006696,1715707848922,-215.139294,0.00026,2]
[327006697,1715707848932,-151.0,0.00026,2]
[327006698,1715707848941,-151.0,0.00026,2]
[327006699,1715707848950,-151.0,0.00026,2]
[327006700,1715707848959,-151.0,0.00026,2]
[327006701,1715707848968,-151.0,0.00026,2]
[327006702,1715707848977,-151.0,0.00026,2]
[327006703,1715707848986,-151.0,0.00026,2]
[327006704,1715707848995,-151.0,0.00026,2]
[327006705,1715707849005,-151.0,0.00026,2]
[327006706,1715707849014,-151.0,0.00026,2]
[327006707,1715707849023,-251.537377,0.00026,2]
[327006708,1715707849032,-251.537377,0.00026,2]
[327006709,1715707849042,-251.537377,0.00026,2]
[327006710,1715707849052,-251.537377,0.00026,2]
[327006711,1715707849061,-206.554417,0.00026,2]
[327006712,1715707849070,-206.554417,0.00026,2]
[327006713,1715707849079,-206.554417,0.00026,2]
[327006714,1715707849088,-206.554417,0.00026,2]
[327006715,1715707849097,-151.0,0.00026,2]
[327006716,1715707849106,-151.0,0.00026,2]
[327006717,1715707849115,-151.0,0.00026,2]
[327006718,1715707849124,-225.388296,0.00026,2]
[327006719,1715707849134,-151.0,0.00026,2]
[327006720,1715707849144,-151.0,0.00026,2]
[327006721,1715707849153,-151.0,0.00026,2]
[327006722,1715707849162,-151.0,0.00026,2]
[327006723,1715707849171,-151.0,0.00026,2]
[327006724,1715707849181,-151.0,0.00026,2]
[327006725,1715707849190,-212.042545,0.00026,2]
[327006726,1715707849199,-212.042545,0.00026,2]
[327006727,1715707849208,-212.042545,0.00026,2]
[327006728,1715707849217,-212.042545,0.00026,2]
[327006729,1715707849227,-151.0,0.00026,2]
[327006730,1715707849236,-151.0,0.00026,2]
[327006731,1715707849245,-151.0,0.00026,2]
[327006732,1715707849254,-151.0,0.00026,2]
[327006733,1715707849263,-504.058347,0.00026,2]
[327006734,1715707849272,-504.058347,0.00026,2]
[327006735,1715707849281,-504.058347,0.00026,2]
[327006736,1715707849291,-504.058347,0.00026,2]
[327006737,1715707849300,-151.0,0.00026,2]
[327006738,1715707849309,-151.0,0.00026,2]
[327006739,1715707849318,-151.0,0.00026,2]
[327006740,1715707849327,-151.0,0.00026,2]
[327006741,1715707849337,-151.0,0.00026,2]
[327006742,1715707849346,-151.0,0.00026,2]
[327006743,1715707849355,-151.0,0.00026,2]
[327006744,1715707849364,-151.0,0.00026,2]
[327006745,1715707849375,-261.896948,0.00026,2]
[327006746,1715707849384,-261.896948,0.00026,2]
[327006747,1715707849393,-496.909748,0.00026,2]
[327006748,1715707849402,-496.909748,0.00026,2]
[327006749,1715707849411,-261.896948,0.00026,2]
[327006750,1715707849420,-261.896948,0.00026,2]
[327006751,1715707849430,-496.909748,0.00026,2]
[327006752,1715707849446,-496.909748,0.00026,2]
[327006753,1715707849455,-251.520683,0.00026,2]
[327006754,1715707849465,-251.520683,0.00026,2]
[327006755,1715707849474,-251.520683,0.00026,2]
[327006756,1715707849484,-251.520683,0.00026,2]
[327006757,1715707849493,-151.0,0.00026,2]
[327006758,1715707849502,-1509.320456,0.00026,2]
[327006759,1715707849512,-1509.320456,0.00026,2]
[327006760,1715707849523,-551.178273,0.00026,2]
[327006761,1715707849532,-551.178273,0.00026,2]
[327006762,1715707849541,-551.178273,0.00026,2]
[327006763,1715707849551,-551.178273,0.00026,2]
[327006764,1715707849560,-206.554417,0.00026288,2]
[327006765,1715707849570,-206.554417,0.00026288,2]
[327006766,1715707849579,-151.0,0.00026288,2]
[327006767,1715707849588,-665.77902241,0.000263,5]
[327006768,1715707849597,-151.0,0.000263,2]
[327006769,1715707849607,-1509.320456,0.000263,2]
[327006770,1715707849617,-1509.320456,0.000263,2]
[327006771,1715707849626,-339.59880615,0.00026654,2]
[327006772,1715707849635,-1601.07752879,0.00027,15]
[327006773,1715707849644,-151.0,0.00027,2]
[327006774,1715707849654,-151.0,0.00027,2]
[327006775,1715707849663,-151.0,0.00027,2]
[327006776,1715707849673,-151.0,0.00027,2]
[327006777,1715707849682,-151.0,0.00027,2]
[327006778,1715707849691,-192.0141,0.00027,2]
[327006779,1715707849701,-151.0,0.00027,2]
[327006780,1715707849710,-251.537377,0.00027,2]
[327006781,1715707849719,-251.537377,0.00027,2]
[327006782,1715707849728,-243.532945,0.00027,2]
[327006783,1715707849738,-212.042545,0.00027,2]
[327006784,1715707849748,-212.042545,0.00027,2]
[327006785,1715707849757,-504.058347,0.00027,2]
[327006786,1715707849767,-504.058347,0.00027,2]
[327006787,1715707849776,-151.0,0.00027,2]
[327006788,1715707849785,-151.0,0.00027,2]
[327006789,1715707849794,-151.0,0.00027,2]
[327006790,1715707849803,-551.178273,0.00027,2]
[327006791,1715707849812,-551.178273,0.00027,2]
[327006792,1715707849821,-151.0,0.00027123,2]
[327006793,1715707849830,-151.0,0.00027123,2]
[327006794,1715707849839,-151.0,0.00027123,2]
[327006795,1715707849850,-261.896948,0.00027123,2]
[327006796,1715707849859,-496.909748,0.00027123,2]
[327006797,1715707849869,-261.896948,0.00027123,2]
[327006798,1715707849878,-496.909748,0.00027123,2]
[327006799,1715707849887,-251.520683,0.00027123,2]
[327006800,1715707849898,-251.520683,0.00027123,2]
[327006801,1715707849907,-293.059664,0.00027123,2]
[327006802,1715707849916,-151.0,0.00027397,2]
[327006803,1715707849925,-151.0,0.00027397,2]
[327006804,1715707849934,-151.0,0.00027397,2]
[327006805,1715707849944,-151.0,0.00027397,2]
[327006806,1715707849953,-151.0,0.00027397,2]
[327006807,1715707849962,-1000.0,0.00027397,2]
[327006808,1715707849971,-1000.0,0.00027397,2]
[327006809,1715707849980,-1000.0,0.00027397,2]
[327006810,1715707849990,-1000.0,0.00027397,2]
[327006811,1715707849999,-251.537377,0.00027397,2]
[327006812,1715707850008,-251.537377,0.00027397,2]
[327006813,1715707850018,-206.554417,0.00027397,2]
[327006814,1715707850027,-206.554417,0.00027397,2]
[327006815,1715707850036,-151.0,0.00027397,2]
[327006816,1715707850045,-151.0,0.00027397,2]
[327006817,1715707850054,-1509.320456,0.00027397,2]
[327006818,1715707850064,-1509.320456,0.00027397,2]
[327006819,1715707850073,-1000.0,0.00027499,2]
[327006820,1715707850082,-212.042545,0.00027499,2]
[327006821,1715707850091,-212.042545,0.00027499,2]
[327006822,1715707850101,-504.058347,0.00027499,2]
[327006823,1715707850110,-504.058347,0.00027499,2]
[327006824,1715707850119,-151.0,0.00027499,2]
[327006825,1715707850129,-151.0,0.00027499,2]
[327006826,1715707850138,-551.178273,0.00027499,2]
[327006827,1715707850148,-551.178273,0.00027499,2]
[327006828,1715707850158,-151.0,0.000275,2]
[327006829,1715707850167,-151.0,0.000275,2]
[327006830,1715707850177,-206.554417,0.000275,2]
[327006831,1715707850186,-206.554417,0.000275,2]
[327006832,1715707850196,-151.0,0.000275,2]
[327006833,1715707850206,-3000.0,0.000275,2]
[327006834,1715707850216,-151.0,0.000275,2]
[327006835,1715707850225,-151.0,0.000275,2]
[327006836,1715707850235,-151.0,0.000275,2]
[327006837,1715707850244,-261.896948,0.000275,2]
[327006838,1715707850254,-496.909748,0.000275,2]
[327006839,1715707850263,-261.896948,0.000275,2]
[327006840,1715707850273,-496.909748,0.000275,2]
[327006841,1715707850283,-251.520683,0.000275,2]
[327006842,1715707850292,-251.520683,0.000275,2]
[327006843,1715707850302,-805.3611334,0.00027507,17]
[327006844,1715707850311,-151.0,0.00027508,2]
[327006845,1715707850320,-151.0,0.00027508,2]
[327006846,1715707850329,-251.537377,0.00027508,2]
[327006847,1715707850340,-251.537377,0.00027508,2]
[327006848,1715707850350,-151.0,0.00027508,2]
[327006849,1715707850359,-1509.320456,0.00027508,2]
[327006850,1715707850369,-1509.320456,0.00027508,2]
[327006851,1715707850378,-3000.0,0.0002751,2]
[327006852,1715707850387,-212.042545,0.0002751,2]
[327006853,1715707850398,-212.042545,0.0002751,2]
[327006854,1715707850408,-151.0,0.0002751,2]
[327006855,1715707850417,-151.0,0.0002751,2]
[327006856,1715707850427,-504.058347,0.0002751,2]
[327006857,1715707850436,-504.058347,0.0002751,2]
[327006858,1715707850451,-151.0,0.0002752,2]
[327006859,1715707850460,-168.0,0.0002752,2]
[327006860,1715707850470,-151.0,0.0002752,2]
[327006861,1715707850480,-151.0,0.0002752,2]
[327006862,1715707850490,-251.537377,0.0002752,2]
[327006863,1715707850501,-251.537377,0.0002752,2]
[327006864,1715707850511,-206.554417,0.0002752,2]
[327006865,1715707850521,-206.554417,0.0002752,2]
[327006866,1715707850531,-151.0,0.0002752,2]
[327006867,1715707850540,-3000.0,0.0002752,2]
[327006868,1715707850549,-151.0,0.0002752,2]
[327006869,1715707850559,-151.0,0.0002752,2]
[327006870,1715707850568,-261.896948,0.0002752,2]
[327006871,1715707850578,-496.909748,0.0002752,2]
[327006872,1715707850587,-261.896948,0.0002752,2]
[327006873,1715707850596,-496.909748,0.0002752,2]
[327006874,1715707850606,-251.520683,0.0002752,2]
[327006875,1715707850615,-251.520683,0.0002752,2]
[327006876,1715707850625,-151.0,0.0002752,2]
[327006877,1715707850635,-1509.320456,0.0002752,2]
[327006878,1715707850645,-1509.320456,0.0002752,2]
[327006879,1715707850654,-551.178273,0.0002752,2]
[327006880,1715707850664,-551.178273,0.0002752,2]
[327006881,1715707850673,-151.0,0.0002753,2]
[327006882,1715707850682,-3000.0,0.0002753,2]
[327006883,1715707850691,-212.042545,0.0002753,2]
[327006884,1715707850701,-212.042545,0.0002753,2]
[327006885,1715707850710,-151.0,0.0002753,2]
[327006886,1715707850719,-151.0,0.0002753,2]
[327006887,1715707850728,-504.058347,0.0002753,2]
[327006888,1715707850738,-504.058347,0.0002753,2]
[327006889,1715707850747,-551.178273,0.0002753,2]
[327006890,1715707850756,-551.178273,0.0002753,2]
[327006891,1715707850765,-151.0,0.0002754,2]
[327006892,1715707850774,-151.0,0.0002754,2]